bitfinex-derivatives/quotes_BTCF0:USTF0_20240825
["timestamp","ask_amount","ask_price","bid_price","bid_amount"]
[1724576101053,0.44093943,63983.0,63982.0,0.0924]
[1724576101753,0.44093943,63983.0,63982.0,0.22910493]
[1724576101950,0.08013943,63983.0,63982.0,0.22910493]
[1724576102360,0.44093943,63983.0,63982.0,0.22910493]
[1724576102655,0.44093943,63983.0,63982.0,0.13910493]
[1724576103256,0.08013943,63983.0,63982.0,0.13910493]
[1724576103461,0.44093943,63983.0,63982.0,0.13910493]
[1724576103661,0.44093943,63983.0,63982.0,0.0924]
[1724576104253,0.50935441,63983.0,63982.0,0.0924]
[1724576111067,0.50835441,63983.0,63982.0,0.0914]
[1724576111368,0.50935441,63983.0,63982.0,0.0924]
[1724576111671,0.50935441,63983.0,63982.0,0.0914]
[1724576111968,0.50935441,63983.0,63982.0,0.0924]
[1724576112765,0.43993943,63983.0,63982.0,0.15385583]
[1724576112959,0.44093943,63983.0,63982.0,0.15485583]
[1724576114967,0.44093943,63983.0,63982.0,0.170506]
[1724576118975,0.44093943,63983.0,63982.0,0.24857579]
[1724576119682,0.08013943,63983.0,63982.0,0.24857579]
[1724576120071,0.08013943,63983.0,63982.0,0.170506]
[1724576123179,0.08013943,63983.0,63982.0,0.260506]
[1724576123790,0.08013943,63983.0,63982.0,0.37952109]
[1724576127074,0.20476236,63983.0,63982.0,0.260506]
[1724576127278,0.23493005,63983.0,63982.0,0.260506]
[1724576127486,0.27317478,63983.0,63982.0,0.260506]
[1724576127981,0.11030712,63983.0,63982.0,0.260506]
[1724576128987,0.11030708,63983.0,63982.0,0.260506]
[1724576130375,0.11030708,63983.0,63982.0,0.170506]
[1724576133790,0.14855175,63983.0,63982.0,0.170506]
[1724576134986,0.08013943,63983.0,63982.0,0.38328855]
[1724576135193,0.04106691,63983.0,63982.0,0.38328855]
[1724576139593,0.04106691,63983.0,63982.0,0.47328855]
[1724576140090,0.04106691,63983.0,63982.0,0.37952091]
[1724576141398,0.04106691,63983.0,63982.0,0.47328855]
[1724576142098,0.07123454,63983.0,63982.0,0.260506]
[1724576143702,0.10947918,63983.0,63982.0,0.260506]
[1724576143891,0.07123454,63983.0,63982.0,0.260506]
[1724576146193,0.03116763,63983.0,63982.0,0.260506]
[1724576146404,0.1405612,63983.0,63982.0,0.170506]
[1724576147201,0.2305612,63983.0,63982.0,0.170506]
[1724576147395,0.2305612,63983.0,63982.0,0.0924]
[1724576147396,0.3086662,63983.0,63982.0,0.0924]
[1724576147705,0.23751791,63983.0,63982.0,0.0924]
[1724576149100,0.169105,63983.0,63982.0,0.21141831]
[1724576149996,0.529905,63983.0,63982.0,0.21141831]
[1724576150708,0.169105,63983.0,63982.0,0.21141831]
[1724576150906,0.529905,63983.0,63982.0,0.21141831]
[1724576152004,0.529905,63983.0,63982.0,0.30518595]
[1724576153504,0.529905,63983.0,63982.0,0.30518583]
[1724576154112,0.529905,63983.0,63982.0,0.21141819]
[1724576154302,0.529905,63983.0,63982.0,0.30518583]
[1724576154505,0.529905,63983.0,63982.0,0.21141819]
[1724576157209,0.62366984,63983.0,63982.0,0.0924]
[1724576157412,0.26286984,63983.0,63982.0,0.0924]
[1724576157613,0.62366984,63983.0,63982.0,0.0924]
[1724576157814,0.26286984,63983.0,63982.0,0.0924]
[1724576158212,0.62366984,63983.0,63982.0,0.0924]
[1724576160207,0.26286984,63983.0,63982.0,0.0924]
[1724576160508,0.62366984,63983.0,63982.0,0.0924]
[1724576162611,0.26286984,63983.0,63982.0,0.0924]
[1724576162908,0.62366984,63983.0,63982.0,0.0924]
[1724576163311,0.169105,63983.0,63982.0,0.0924]
[1724576163510,0.529905,63983.0,63982.0,0.0924]
[1724576164112,0.529905,63983.0,63982.0,0.21141804]
[1724576164708,0.169105,63983.0,63982.0,0.21141804]
[1724576165119,0.529905,63983.0,63982.0,0.21141804]
[1724576166714,0.529905,63983.0,63982.0,0.28952404]
[1724576168212,0.3618,63983.0,63982.0,0.28952404]
[1724576168612,0.3618,63983.0,63982.0,0.33742404]
[1724576170117,0.4518,63983.0,63982.0,0.33742404]
[1724576172921,0.3618,63983.0,63982.0,0.33742281]
[1724576173216,0.3618,63983.0,63982.0,0.43119045]
[1724576173811,0.09,63986.0,63985.0,0.078102]
[1724576174011,0.09,63986.0,63985.0,0.28711881]
[1724576174519,0.09,63986.0,63985.0,0.28751881]
[1724576175110,0.091,63986.0,63985.0,0.28851881]
[1724576175717,0.091,63986.0,63985.0,0.28851458]
[1724576176418,0.091,63986.0,63985.0,0.28951458]
[1724576176715,0.001,63986.0,63985.0,0.28951458]
[1724576177509,0.001,63986.0,63985.0,0.28851458]
[1724576177714,0.0781,63987.0,63986.0,0.078101]
[1724576177915,0.0781,63987.0,63986.0,0.38509736]
[1724576178423,0.0781,63987.0,63986.0,0.38549736]
[1724576179122,0.0781,63987.0,63986.0,0.188501]
[1724576179123,0.10826705,63987.0,63986.0,0.188501]
[1724576179319,0.14651096,63987.0,63986.0,0.189501]
[1724576179921,0.14651096,63987.0,63986.0,0.190501]
[1724576181324,0.14651096,63987.0,63986.0,0.280501]
[1724576182729,0.0781,63987.0,63986.0,0.280501]
[1724576183031,0.03016686,63987.0,63986.0,0.280501]
[1724576183827,0.06841053,63987.0,63986.0,0.280501]
[1724576184022,0.03016686,63987.0,63986.0,0.280501]
[1724576187230,0.36103443,63989.0,63988.0,0.078098]
[1724576187432,0.36103443,63989.0,63988.0,0.38505563]
[1724576187627,0.00023443,63989.0,63988.0,0.38505563]
[1724576188029,0.36103443,63989.0,63988.0,0.38545563]
[1724576188638,0.00023443,63989.0,63988.0,0.38545563]
[1724576188935,0.36103443,63989.0,63988.0,0.38545563]
[1724576189125,0.00023443,63989.0,63988.0,0.38645563]
[1724576189322,0.36103443,63989.0,63988.0,0.38645563]
[1724576189524,0.36103443,63989.0,63988.0,0.38745563]
[1724576190638,0.00023443,63989.0,63988.0,0.38745563]
[1724576190825,0.36103443,63989.0,63988.0,0.38745563]
[1724576191626,0.00023443,63989.0,63988.0,0.38745563]
[1724576191834,0.36103443,63989.0,63988.0,0.38745563]
[1724576192238,0.00023443,63989.0,63988.0,0.38745563]
[1724576192431,0.36103443,63989.0,63988.0,0.38745563]
[1724576192940,0.00023443,63989.0,63988.0,0.38745563]
[1724576193142,0.36103443,63989.0,63988.0,0.38745563]
[1724576193843,0.00023443,63989.0,63988.0,0.38745563]
[1724576194040,0.36103443,63989.0,63988.0,0.38745563]
[1724576194356,0.39120078,63989.0,63988.0,0.190498]
[1724576197636,0.39120108,63989.0,63988.0,0.190498]
[1724576198239,0.03040108,63989.0,63988.0,0.190498]
[1724576198542,0.39120108,63989.0,63988.0,0.190498]
[1724576198936,0.03040108,63989.0,63988.0,0.190498]
[1724576199135,0.39120108,63989.0,63988.0,0.190498]
[1724576199330,0.03040108,63989.0,63988.0,0.190498]
[1724576199530,0.39120108,63989.0,63988.0,0.190498]
[1724576202244,0.36103443,63989.0,63988.0,0.190498]
[1724576203044,0.43913143,63989.0,63988.0,0.1124]
[1724576203236,0.53303143,63989.0,63988.0,0.1124]
[1724576207233,0.17223143,63989.0,63988.0,0.1124]
[1724576207437,0.53303143,63989.0,63988.0,0.1124]
[1724576207838,0.62303143,63989.0,63988.0,0.1124]
[1724576208939,0.70112843,63989.0,63988.0,0.1124]
[1724576209448,0.76359739,63989.0,63988.0,0.1124]
[1724576209945,0.70112843,63989.0,63988.0,0.17477474]
[1724576210346,0.70112843,63989.0,63988.0,0.1124]
[1724576210739,1.56996843,63989.0,63988.0,0.1124]
[1724576211149,1.56996843,63989.0,63988.0,0.17477474]
[1724576212042,1.5923347,63989.0,63988.0,0.1124]
[1724576212642,1.5923347,63989.0,63988.0,0.15917476]
[1724576212946,1.5923347,63989.0,63988.0,0.1124]
[1724576213450,1.5923347,63989.0,63988.0,0.0024]
[1724576213651,1.6704209,63989.0,63988.0,0.0024]
[1724576213850,1.5923347,63989.0,63988.0,0.04918261]
[1724576214443,1.67039825,63989.0,63988.0,0.0024]
[1724576215346,1.9531347,63989.0,63988.0,0.0024]
[1724576216750,1.93076843,63989.0,63988.0,0.0024]
[1724576217252,1.96093907,63989.0,63988.0,0.0024]
[1724576221047,1.23933907,63989.0,63988.0,0.0024]
[1724576221242,1.96093907,63989.0,63988.0,0.0024]
[1724576221447,1.98366767,63989.0,63988.0,0.0024]
[1724576224154,1.95349703,63989.0,63988.0,0.0024]
[1724576224365,1.23189703,63989.0,63988.0,0.0024]
[1724576224554,1.95349703,63989.0,63988.0,0.0024]
[1724576225651,1.23189703,63989.0,63988.0,0.0024]
[1724576225844,1.95349703,63989.0,63988.0,0.0024]
[1724576226447,1.93076843,63989.0,63988.0,0.0024]
[1724576226658,1.88366843,63989.0,63988.0,0.0024]
[1724576227446,1.96176543,63989.0,63988.0,1e-06]
[1724576227647,2.03977137,63989.0,63988.0,1e-06]
[1724576227951,2.00786543,63989.0,63988.0,1e-06]
[1724576228157,0.156202,63986.0,63985.0,0.02287454]
[1724576228359,0.156216,63980.0,63979.0,0.04678261]
[1724576228650,0.156216,63980.0,63976.0,0.04678261]
[1724576228651,0.078112,63977.0,63976.0,0.04678261]
[1724576228846,0.168112,63977.0,63976.0,0.04678261]
[1724576230053,0.169112,63977.0,63976.0,0.04678261]
[1724576230257,0.078113,63976.0,63975.0,0.04678261]
[1724576231358,0.078113,63976.0,63975.0,0.05678261]
[1724576232253,0.078113,63976.0,63975.0,0.01]
[1724576232254,0.1082872,63976.0,63975.0,0.01]
[1724576232459,0.4690872,63976.0,63975.0,0.01]
[1724576233357,0.4700872,63976.0,63975.0,0.01]
[1724576235758,0.439913,63976.0,63975.0,0.01]
[1724576235961,0.47008717,63976.0,63975.0,0.01]
[1724576236462,0.10928717,63976.0,63975.0,0.01]
[1724576236765,0.47008717,63976.0,63975.0,0.01]
[1724576237957,0.47008716,63976.0,63975.0,0.01]
[1724576239260,0.439913,63976.0,63975.0,0.01]
[1724576239459,0.079113,63976.0,63975.0,0.01]
[1724576239659,0.439913,63976.0,63975.0,0.01]
[1724576240055,0.518026,63976.0,63975.0,0.05676649]
[1724576240466,0.58044182,63976.0,63975.0,0.01]
[1724576240970,0.156228,63975.0,63974.0,0.07016]
[1724576241558,0.156228,63975.0,63974.0,0.02339351]
[1724576242061,0.156628,63975.0,63974.0,0.02339351]
[1724576242565,0.156628,63975.0,63974.0,0.03339351]
[1724576243167,0.157628,63975.0,63974.0,0.03339351]
[1724576243861,0.518428,63975.0,63974.0,0.03339351]
[1724576244158,0.518428,63975.0,63974.0,0.08016]
[1724576244359,0.518428,63975.0,63974.0,0.03339351]
[1724576245165,0.157628,63975.0,63974.0,0.03339351]
[1724576245468,0.518428,63975.0,63974.0,0.08016]
[1724576247062,0.157628,63975.0,63974.0,0.08016]
[1724576247373,0.157628,63975.0,63974.0,0.03339351]
[1724576247558,0.518428,63975.0,63974.0,0.03339351]
[1724576249164,0.54860321,63975.0,63974.0,0.03339351]
[1724576249555,0.518428,63975.0,63974.0,0.03339351]
[1724576249865,0.157628,63975.0,63974.0,0.03339351]
[1724576250062,0.518428,63975.0,63974.0,0.03339351]
[1724576250267,0.5486032,63975.0,63974.0,0.03339351]
[1724576250456,0.518428,63975.0,63974.0,0.03339351]
[1724576251763,0.157628,63975.0,63974.0,0.03339351]
[1724576252068,0.518428,63975.0,63974.0,0.03339351]
[1724576252460,0.54860313,63975.0,63974.0,0.03339351]
[1724576252665,0.18780313,63975.0,63974.0,0.03339351]
[1724576252864,0.54860313,63975.0,63974.0,0.03339351]
[1724576253158,0.18780313,63975.0,63974.0,0.03339351]
[1724576253355,0.54860313,63975.0,63974.0,0.03339351]
[1724576253564,0.47048913,63975.0,63974.0,0.03339351]
[1724576253967,0.10968913,63975.0,63974.0,0.03339351]
[1724576254163,0.47048913,63975.0,63974.0,0.03339351]
[1724576254359,0.440314,63975.0,63974.0,0.03339351]
[1724576256377,0.50275984,63975.0,63974.0,0.09576825]
[1724576256671,0.50275984,63975.0,63974.0,0.03339351]
[1724576257171,0.440314,63975.0,63974.0,0.09576825]
[1724576259069,0.079514,63975.0,63974.0,0.09576825]
[1724576259271,0.440314,63975.0,63974.0,0.09576825]
[1724576260978,0.079514,63975.0,63974.0,0.09576825]
[1724576261183,0.440314,63975.0,63974.0,0.09576825]
[1724576262369,0.079514,63975.0,63974.0,0.09576825]
[1724576262575,0.440314,63975.0,63974.0,0.09576825]
[1724576263079,0.079514,63975.0,63974.0,0.09576825]
[1724576263272,0.440314,63975.0,63974.0,0.09576825]
[1724576263673,0.079514,63975.0,63974.0,0.09576825]
[1724576263874,0.440314,63975.0,63974.0,0.09576825]
[1724576264575,0.079514,63975.0,63974.0,0.09576825]
[1724576265281,0.440314,63975.0,63974.0,0.09576825]
[1724576266477,0.079514,63975.0,63974.0,0.09576825]
[1724576266682,0.440314,63975.0,63974.0,0.09576825]
[1724576267073,0.079514,63975.0,63974.0,0.09576825]
[1724576267382,0.440314,63975.0,63974.0,0.09576825]
[1724576267875,0.079514,63975.0,63974.0,0.09576825]
[1724576268075,0.440314,63975.0,63974.0,0.09576825]
[1724576268273,0.440314,63975.0,63974.0,0.03339351]
[1724576268879,0.079514,63975.0,63974.0,0.03339351]
[1724576269274,0.47048927,63975.0,63974.0,0.03339351]
[1724576269478,0.5087436,63975.0,63974.0,0.03339351]
[1724576269875,0.1479436,63975.0,63974.0,0.03339351]
[1724576270071,0.5087436,63975.0,63974.0,0.03339351]
[1724576270578,0.1479436,63975.0,63974.0,0.03339351]
[1724576271079,0.5087436,63975.0,63974.0,0.03339351]
[1724576271482,0.14794451,63975.0,63974.0,0.03339351]
[1724576271679,0.50874451,63975.0,63974.0,0.03339351]
[1724576272676,0.14794451,63975.0,63974.0,0.03339351]
[1724576273077,0.50874451,63975.0,63974.0,0.03339351]
[1724576276082,0.14794451,63975.0,63974.0,0.03339351]
[1724576276289,0.50874451,63975.0,63974.0,0.03339351]
[1724576276780,0.14794451,63975.0,63974.0,0.03339351]
[1724576276983,0.50874451,63975.0,63974.0,0.03339351]
[1724576277388,0.440314,63975.0,63974.0,0.03339351]
[1724576281492,0.440314,63975.0,63969.0,0.17414787]
[1724576281493,0.156238,63971.0,63969.0,0.06249653]
[1724576281786,0.078122,63969.0,63968.0,0.0468833]
[1724576281984,0.168122,63969.0,63968.0,0.0468833]
[1724576282184,0.168122,63969.0,63965.0,0.0468833]
[1724576282185,0.09,63969.0,63965.0,0.0468833]
[1724576282383,0.078126,63965.0,63964.0,0.06946239]
[1724576282585,0.168126,63965.0,63964.0,0.06946239]
[1724576283191,0.168526,63965.0,63964.0,0.02257909]
[1724576283383,0.168526,63965.0,63962.0,0.0468833]
[1724576283384,0.078129,63963.0,63962.0,0.0468833]
[1724576283689,0.1405826,63963.0,63962.0,0.0568833]
[1724576283885,0.5013826,63963.0,63962.0,0.01]
[1724576284185,0.5013826,63963.0,63962.0,0.0568156]
[1724576284186,0.439329,63963.0,63962.0,0.0568156]
[1724576284494,0.439329,63963.0,63962.0,0.01]
[1724576285388,0.439329,63963.0,63962.0,0.013]
[1724576285792,0.439329,63963.0,63962.0,0.015]
[1724576286484,0.53294562,63963.0,63962.0,0.015]
[1724576286692,0.439329,63963.0,63962.0,0.015]
[1724576288985,0.439329,63963.0,63962.0,0.005]
[1724576289794,0.46951197,63963.0,63962.0,0.003]
[1724576290093,0.444329,63963.0,63962.0,0.004]
[1724576290895,0.444329,63963.0,63962.0,0.001]
[1724576291094,0.447329,63963.0,63962.0,0.001]
[1724576291694,0.537329,63963.0,63962.0,0.001]
[1724576293892,0.898129,63963.0,63962.0,0.001]
[1724576294797,0.898129,63963.0,63962.0,0.011]
[1724576295389,0.176529,63963.0,63962.0,0.011]
[1724576295690,0.898129,63963.0,63962.0,0.011]
[1724576301793,0.176529,63963.0,63962.0,0.011]
[1724576302308,0.898129,63963.0,63962.0,0.011]
[1724576302506,0.898129,63963.0,63962.0,0.001]
[1724576303196,0.96048942,63963.0,63962.0,0.001]
[1724576305902,0.23888942,63963.0,63962.0,0.001]
[1724576306311,0.96048942,63963.0,63962.0,0.001]
[1724576307196,0.898129,63963.0,63962.0,0.001]
[1724576308704,0.808129,63963.0,63962.0,0.031]
[1724576308899,0.898129,63963.0,63962.0,0.031]
[1724576309099,0.898129,63963.0,63962.0,0.001]
[1724576310308,0.61527953,63963.0,63962.0,0.0478156]
[1724576311101,0.25447953,63963.0,63962.0,0.0478156]
[1724576311405,0.61527953,63963.0,63962.0,0.0478156]
[1724576313212,0.61527953,63963.0,63962.0,0.001]
[1724576314106,0.25447953,63963.0,63962.0,0.001]
[1724576314309,0.52527953,63963.0,63962.0,0.011]
[1724576314609,0.537329,63963.0,63962.0,0.011]
[1724576316017,0.537329,63963.0,63962.0,0.0735106]
[1724576316214,0.537329,63963.0,63962.0,0.0582]
[1724576316413,0.537329,63963.0,63962.0,0.1482]
[1724576316414,0.3692,63963.0,63962.0,0.1482]
[1724576317112,0.3692,63963.0,63962.0,0.22629053]
[1724576317708,0.3692,63963.0,63962.0,0.13629053]
[1724576318111,0.3692,63963.0,63962.0,0.0582]
[1724576319111,0.41603945,63963.0,63962.0,0.0582]
[1724576319312,0.3692,63963.0,63962.0,0.0582]
[1724576319910,0.3642,63963.0,63962.0,0.0572]
[1724576320107,0.50203271,63963.0,63962.0,0.0572]
[1724576321413,0.50103271,63963.0,63962.0,0.0572]
[1724576321717,0.50203271,63963.0,63962.0,0.0572]
[1724576322415,0.50303271,63963.0,63962.0,0.0572]
[1724576322724,0.4562,63963.0,63962.0,0.0572]
[1724576323123,0.53422835,63963.0,63962.0,0.0572]
[1724576323613,0.53522835,63963.0,63962.0,0.0572]
[1724576324614,0.53122835,63963.0,63962.0,0.0572]
[1724576324814,0.53422835,63963.0,63962.0,0.0572]
[1724576325220,0.53122835,63963.0,63962.0,0.0572]
[1724576325416,0.53522835,63963.0,63962.0,0.0572]
[1724576326215,0.17442835,63963.0,63962.0,0.0572]
[1724576327327,0.25255735,63963.0,63962.0,0.0572]
[1724576329521,0.174529,63963.0,63962.0,0.0572]
[1724576330910,0.174529,63963.0,63962.0,0.11955868]
[1724576331319,0.174529,63963.0,63962.0,0.0572]
[1724576331617,0.174529,63963.0,63962.0,0.11956086]
[1724576332027,0.174529,63963.0,63962.0,0.0572]
[1724576334020,0.174529,63963.0,63962.0,0.11954089]
[1724576334326,0.174529,63963.0,63962.0,0.0572]
[1724576336819,0.173529,63963.0,63962.0,0.0572]
[1724576337524,0.19885933,63963.0,63962.0,0.0572]
[1724576339820,0.19985933,63963.0,63962.0,0.0572]
[1724576340138,0.19785933,63963.0,63962.0,0.0572]
[1724576340423,0.19985933,63963.0,63962.0,0.0572]
[1724576340926,0.19785933,63963.0,63962.0,0.0572]
[1724576341126,0.19985933,63963.0,63962.0,0.0572]
[1724576344829,0.22139419,63963.0,63962.0,0.25434491]
[1724576345229,0.174529,63963.0,63962.0,0.17625438]
[1724576345423,0.174529,63963.0,63962.0,0.25430545]
[1724576346335,0.174529,63963.0,63962.0,0.17625438]
[1724576356444,0.174529,63963.0,63962.0,0.12905438]
[1724576359745,0.174529,63963.0,63962.0,0.01]
[1724576359746,0.19985954,63963.0,63962.0,0.01]
[1724576363439,0.56065954,63963.0,63962.0,0.01]
[1724576363843,0.19985954,63963.0,63962.0,0.01]
[1724576364240,0.56065954,63963.0,63962.0,0.01]
[1724576364442,0.19985954,63963.0,63962.0,0.01]
[1724576364738,0.56065954,63963.0,63962.0,0.01]
[1724576366752,0.535329,63963.0,63962.0,0.12905744]
[1724576367452,0.5822243,63963.0,63962.0,0.12905744]
[1724576369145,0.2214243,63963.0,63962.0,0.12905744]
[1724576369347,0.5822243,63963.0,63962.0,0.12905744]
[1724576369855,0.2214243,63963.0,63962.0,0.12905744]
[1724576370045,0.5822243,63963.0,63962.0,0.12905744]
[1724576370646,0.5822243,63963.0,63962.0,0.12905662]
[1724576371141,0.5822243,63963.0,63962.0,0.12905663]
[1724576373649,0.2214243,63963.0,63962.0,0.12905663]
[1724576373855,0.5822243,63963.0,63962.0,0.12905663]
[1724576374050,0.2214243,63963.0,63962.0,0.12905663]
[1724576374249,0.5822243,63963.0,63962.0,0.12905663]
[1724576374652,0.2214243,63963.0,63962.0,0.12905663]
[1724576374954,0.2214243,63963.0,63962.0,0.01]
[1724576374955,0.56065931,63963.0,63962.0,0.01]
[1724576377057,0.19985931,63963.0,63962.0,0.01]
[1724576377360,0.56065931,63963.0,63962.0,0.01]
[1724576378951,0.56065931,63963.0,63962.0,0.08813]
[1724576379450,0.47065931,63963.0,63962.0,0.08813]
[1724576380246,0.39253031,63963.0,63962.0,0.17813]
[1724576380660,0.48631669,63963.0,63962.0,0.17813]
[1724576381756,0.12551669,63963.0,63962.0,0.17813]
[1724576381967,0.0064,63963.0,63962.0,0.39095074]
[1724576382565,0.12501768,63965.0,63962.0,0.39095011]
[1724576382768,0.12501768,63965.0,63963.0,0.19718047]
[1724576383073,0.12501768,63965.0,63964.0,0.11905247]
[1724576383074,0.078127,63965.0,63964.0,0.11905247]
[1724576383256,0.14064791,63965.0,63964.0,0.20760996]
[1724576383456,0.078127,63965.0,63964.0,0.20800996]
[1724576383659,0.080127,63965.0,63964.0,0.20800996]
[1724576384357,0.078127,63965.0,63964.0,0.20800996]
[1724576384559,0.081127,63965.0,63964.0,0.20800996]
[1724576385162,0.086127,63965.0,63964.0,0.20800996]
[1724576385867,0.086127,63965.0,63964.0,0.18846756]
[1724576386359,0.086127,63965.0,63964.0,0.20800997]
[1724576386566,0.086127,63965.0,63964.0,0.18846756]
[1724576388667,0.086127,63965.0,63964.0,0.20800996]
[1724576391667,0.086127,63965.0,63964.0,0.28613796]
[1724576392166,0.13301052,63965.0,63964.0,0.30758006]
[1724576395864,0.13301052,63965.0,63964.0,0.39758006]
[1724576395865,0.008,63965.0,63964.0,0.39758006]
[1724576396180,0.04688328,63969.0,63964.0,0.31945206]
[1724576396369,0.04688328,63970.0,63969.0,0.078121]
[1724576396571,0.04688328,63970.0,63969.0,0.30717306]
[1724576397078,0.02532713,63970.0,63969.0,0.1104]
[1724576397272,0.17190438,63972.0,63970.0,0.07812]
[1724576397470,0.02532713,63971.0,63970.0,0.27812]
[1724576397974,0.19723151,63972.0,63970.0,0.27812]
[1724576398278,0.02532713,63971.0,63970.0,0.27812]
[1724576398479,0.02532713,63971.0,63970.0,0.27912]
[1724576399067,0.02532713,63971.0,63970.0,0.27812]
[1724576399273,0.02632713,63971.0,63970.0,0.27912]
[1724576400374,0.11632713,63971.0,63970.0,0.18912]
[1724576400577,0.11632713,63971.0,63970.0,0.19012]
[1724576400974,0.02632713,63971.0,63970.0,0.19012]
[1724576401285,0.07805062,63978.0,63977.0,0.078111]
[1724576401581,0.06243551,63979.0,63977.0,0.5508]
[1724576401772,0.02839344,63984.0,63978.0,0.65232]
[1724576402092,0.06243285,63985.0,63983.0,0.078103]
[1724576402387,0.06243285,63985.0,63984.0,0.168103]
[1724576402688,0.06243285,63985.0,63984.0,0.278103]
[1724576402886,0.06243285,63985.0,63984.0,0.278503]
[1724576403179,0.06266728,63987.0,63985.0,0.0781]
[1724576403381,0.06266728,63987.0,63985.0,0.1581]
[1724576403983,0.06266728,63987.0,63986.0,0.078499]
[1724576404177,0.06243285,63988.0,63987.0,0.078098]
[1724576404379,0.0004,63989.0,63988.0,0.078097]
[1724576404684,0.3608,63993.0,63988.0,0.11]
[1724576404875,0.3608,63993.0,63992.0,0.078092]
[1724576405185,0.0469,63998.0,63995.0,0.078088]
[1724576405380,0.0469,63998.0,63995.0,0.258088]
[1724576405585,0.0469,63998.0,63997.0,0.04660469]
[1724576405882,0.0469,63998.0,63997.0,0.07]
[1724576406081,0.0469,63998.0,63997.0,0.11657469]
[1724576406274,0.00023443,63999.0,63997.0,0.11657469]
[1724576406471,0.00023443,63999.0,63998.0,0.09]
[1724576406675,0.00023443,63999.0,63998.0,0.18]
[1724576407780,0.09023443,63999.0,63998.0,0.091]
[1724576408082,0.09023443,63999.0,63998.0,0.021]
[1724576408083,0.52911743,63999.0,63998.0,0.021]
[1724576409279,0.52911743,63999.0,63998.0,0.04872931]
[1724576409781,0.52911743,63999.0,63998.0,0.02872931]
[1724576410082,0.52911743,63999.0,63998.0,0.02972931]
[1724576411288,0.52911743,63999.0,63998.0,0.03972931]
[1724576411584,0.52911743,63999.0,63998.0,0.02972931]
[1724576411787,0.52911743,63999.0,63998.0,0.06972931]
[1724576412082,0.59751839,63999.0,63998.0,0.06972931]
[1724576412982,0.59751862,63999.0,63998.0,0.07012931]
[1724576416176,0.52911743,63999.0,63998.0,0.07012931]
[1724576416381,0.078093,63991.0,63990.0,0.00023443]
[1724576416684,0.528893,63991.0,63990.0,0.01023443]
[1724576416888,0.75255979,63991.0,63990.0,0.01023443]
[1724576417582,0.75257994,63991.0,63990.0,0.01123443]
[1724576417790,0.75258836,63991.0,63990.0,0.01223443]
[1724576418485,0.64523781,63991.0,63990.0,0.01223443]
[1724576418687,0.59730261,63991.0,63990.0,0.01223443]
[1724576418885,0.59730261,63991.0,63990.0,0.04023727]
[1724576419889,0.75260132,63991.0,63990.0,0.04023727]
[1724576420189,0.528893,63991.0,63990.0,0.04023727]
[1724576421493,0.528893,63991.0,63990.0,0.03023727]
[1724576421883,0.606986,63991.0,63990.0,0.03000284]
[1724576422091,0.078106,63980.0,63978.0,0.04657469]
[1724576422284,0.09,63979.0,63978.0,0.09657469]
[1724576422884,0.09,63979.0,63978.0,0.05]
[1724576423089,0.09,63979.0,63978.0,0.09657469]
[1724576423290,0.09,63979.0,63978.0,0.09757469]
[1724576423491,0.09,63979.0,63978.0,0.051]
[1724576423684,0.09,63979.0,63978.0,0.052]
[1724576423685,0.091,63979.0,63978.0,0.052]
[1724576425285,0.091,63979.0,63978.0,0.0986197]
[1724576425493,0.091,63979.0,63978.0,0.052]
[1724576428399,0.001,63979.0,63978.0,0.052]
[1724576428983,0.001,63979.0,63978.0,0.142]
[1724576429187,0.001,63979.0,63978.0,0.220108]
[1724576429982,0.00023443,63985.0,63978.0,0.5028]
[1724576430186,0.07790264,63985.0,63984.0,0.09]
[1724576430387,0.07790264,63985.0,63984.0,0.2]
[1724576430793,0.00023443,63985.0,63984.0,0.278501]
[1724576431297,0.07790264,63985.0,63984.0,0.278501]
[1724576431498,0.00023443,63985.0,63984.0,0.639301]
[1724576431692,0.07809,63993.0,63984.0,0.639301]
[1724576431693,0.07766821,63989.0,63984.0,1.03008]
[1724576431888,0.07766821,63990.0,63989.0,0.078095]
[1724576432087,0.07766821,63990.0,63989.0,0.278095]
[1724576432391,0.07809,63993.0,63990.0,0.078094]
[1724576432590,0.07809,63993.0,63990.0,0.188094]
[1724576432998,0.07809,63993.0,63992.0,0.09]
[1724576433298,0.07809,63993.0,63992.0,0.1904]
[1724576433299,0.17129186,63993.0,63992.0,0.1904]
[1724576434793,0.17129186,63993.0,63992.0,0.1914]
[1724576435004,0.07809,63993.0,63992.0,0.25454582]
[1724576436197,0.07809,63993.0,63992.0,0.1924]
[1724576436385,0.09,63996.0,63992.0,0.1924]
[1724576436590,0.09,63996.0,63993.0,0.06226773]
[1724576436797,0.09,63996.0,63993.0,0.16226773]
[1724576436993,0.09,63996.0,63995.0,0.0467008]
[1724576437194,0.09,63996.0,63995.0,0.0804]
[1724576438094,0.091,63996.0,63995.0,0.0804]
[1724576438790,0.091,63996.0,63995.0,0.0814]
[1724576439392,0.091,63996.0,63995.0,0.0824]
[1724576440591,0.169086,63996.0,63995.0,0.0824]
[1724576443005,0.169086,63996.0,63995.0,0.12916502]
[1724576445208,0.529886,63996.0,63995.0,0.12916502]
[1724576446304,0.529886,63996.0,63995.0,0.0824]
[1724576446805,0.439886,63996.0,63995.0,0.0824]
[1724576449010,0.3618,63996.0,63995.0,0.250488]
[1724576449408,0.3618,63996.0,63995.0,0.29725302]
[1724576450108,0.55447022,63996.0,63995.0,0.160488]
[1724576450916,0.19367022,63996.0,63995.0,0.160488]
[1724576451119,0.15543183,63996.0,63995.0,0.160488]
[1724576451610,0.43020108,63996.0,63995.0,0.160488]
[1724576452916,0.55447022,63996.0,63995.0,0.160488]
[1724576453602,0.43020108,63996.0,63995.0,0.160488]
[1724576454211,0.43020101,63996.0,63995.0,0.160488]
[1724576454816,0.06940101,63996.0,63995.0,0.160488]
[1724576455016,0.43020101,63996.0,63995.0,0.160488]
[1724576457119,0.3618,63996.0,63995.0,0.35750079]
[1724576457315,0.32273393,63996.0,63995.0,0.35750079]
[1724576458312,0.438886,63997.0,63995.0,0.27948325]
[1724576458508,0.438886,63997.0,63996.0,0.19701472]
[1724576458710,0.438886,63997.0,63996.0,0.17801947]